bitfinex/quotes_BTCUSD_20250723
["timestamp","ask_amount","ask_price","bid_price","bid_amount"]
[1753265429796,0.18404119,118010.0,118000.0,0.88981821]
[1753265430024,0.17556798,118010.0,118000.0,0.88981821]
[1753265430249,0.17556798,118010.0,118000.0,0.86946572]
[1753265430700,0.17556798,118010.0,118000.0,0.88641407]
[1753265432648,0.17556798,118010.0,118000.0,0.88090205]
[1753265433801,0.17556798,118010.0,118000.0,0.86055055]
[1753265435022,0.17556798,118010.0,118000.0,0.86055062]
[1753265435259,0.17556798,118010.0,118000.0,0.85207612]
[1753265435454,0.17556798,118010.0,118000.0,0.86055026]
[1753265436355,0.17556798,118010.0,118000.0,0.86054983]
[1753265437289,0.17556798,118010.0,118000.0,1.14793874]
[1753265437514,0.15988433,118010.0,118000.0,1.14793874]
[1753265437749,0.17565189,118010.0,118000.0,0.86054983]
[1753265437973,0.17565189,118010.0,118000.0,1.14793874]
[1753265438189,0.17565189,118010.0,118000.0,0.86054983]
[1753265438403,0.17565189,118010.0,118000.0,1.12758723]
[1753265438634,0.17565189,118010.0,118000.0,0.65498726]
[1753265438864,0.17565189,118010.0,118000.0,0.81505597]
[1753265439119,0.18412517,118010.0,118000.0,1.0939706]
[1753265439304,0.1841251,118010.0,118000.0,1.09397067]
[1753265439533,0.19259845,118010.0,118000.0,1.09397067]
[1753265439765,0.20107194,118010.0,118000.0,0.63709031]
[1753265440001,0.19259845,118010.0,118000.0,0.48549574]
[1753265440233,0.20107202,118010.0,118000.0,0.62873574]
[1753265440719,0.20107194,118010.0,118000.0,0.62873574]
[1753265440936,0.20112846,118010.0,118000.0,0.48549574]
[1753265441151,0.2096021,118010.0,118000.0,0.62869574]
[1753265441366,0.21807581,118010.0,118000.0,0.62869574]
[1753265441588,0.20112846,118010.0,118000.0,0.62869574]
[1753265442029,0.20113334,118010.0,118000.0,0.63717024]
[1753265442286,0.20113327,118010.0,118000.0,0.80666183]
[1753265442498,0.20960684,118010.0,118000.0,0.80666183]
[1753265442708,0.20113327,118010.0,118000.0,0.80666183]
[1753265442920,0.20113327,118010.0,118000.0,0.77613458]
[1753265443120,0.20113327,118010.0,118000.0,0.60664306]
[1753265443556,0.20113327,118010.0,118000.0,0.61511756]
[1753265443876,0.1841865,118010.0,118000.0,0.59476606]
[1753265444302,0.1841865,118010.0,118000.0,0.76425758]
[1753265444524,0.19265985,118010.0,118000.0,0.75578308]
[1753265444776,0.19265985,118010.0,118000.0,0.77273187]
[1753265445184,0.1841865,118010.0,118000.0,0.77273187]
[1753265445394,0.19265985,118010.0,118000.0,0.77273187]
[1753265445611,0.17571329,118010.0,118000.0,0.78120615]
[1753265445828,0.17571329,118010.0,118000.0,0.78968036]
[1753265446042,0.18418664,118010.0,118000.0,0.77273187]
[1753265446191,0.18418657,118010.0,118000.0,0.78120615]
[1753265446408,0.18418657,118010.0,118000.0,0.77273187]
[1753265446928,0.18418657,118010.0,118000.0,0.63800615]
[1753265447076,0.17571329,118010.0,118000.0,0.78948036]
[1753265447286,0.17571329,118010.0,118000.0,0.78947986]
[1753265447555,0.17571329,118010.0,118000.0,0.78947993]
[1753265447757,0.17571329,118010.0,118000.0,0.78100579]
[1753265448080,0.17571329,118010.0,118000.0,0.78947957]
[1753265448670,0.17571329,118010.0,118000.0,0.7810055]
[1753265448812,0.17571329,118010.0,118000.0,0.78947957]
[1753265449026,0.17571329,118010.0,118000.0,0.7810055]
[1753265449233,0.16780756,118010.0,118000.0,1.06839441]
[1753265449439,0.16780756,118010.0,118000.0,0.7810055]
[1753265449737,0.16786343,118010.0,118000.0,1.07686848]
[1753265449942,0.16786343,118010.0,118000.0,1.06839441]
[1753265450168,0.16786343,118010.0,118000.0,1.07686848]
[1753265450693,0.16786343,118010.0,118000.0,0.7810055]
[1753265450921,0.16786343,118010.0,118000.0,0.73012674]
[1753265452518,0.16786343,118010.0,118000.0,0.72165253]
[1753265452715,0.16786343,118010.0,118000.0,1.00904144]
[1753265453070,0.16786862,118010.0,118000.0,1.00904187]
[1753265453281,0.17634197,118010.0,118000.0,0.72165296]
[1753265453814,0.17634197,118010.0,118000.0,0.71317868]
[1753265454019,0.16051328,118010.0,118000.0,0.72165289]
[1753265454442,0.16051328,118010.0,118000.0,0.72165296]
[1753265454838,0.15204,118010.0,118000.0,0.72165296]
[1753265455051,0.15204,118010.0,118000.0,0.73860117]
[1753265455245,0.16051328,118010.0,118000.0,0.73012717]
[1753265455697,0.15204,118010.0,118000.0,1.02599015]
[1753265455929,0.16787839,118010.0,118000.0,1.02599015]
[1753265457007,0.16787839,118010.0,118000.0,0.73860124]
[1753265457447,0.16787839,118010.0,118000.0,1.02599015]
[1753265457663,0.16787839,118010.0,118000.0,0.73012717]
[1753265457875,0.16788155,118010.0,118000.0,0.73860081]
[1753265458095,0.16788155,118010.0,118000.0,1.02598972]
[1753265458311,0.16788155,118010.0,118000.0,0.73860081]
[1753265458531,0.16788155,118010.0,118000.0,1.02598972]
[1753265460630,0.1678887,118010.0,118000.0,1.02598972]
[1753265462601,0.16789168,118010.0,118000.0,1.02598972]
[1753265465233,0.16789168,118010.0,118000.0,0.73860081]
[1753265465437,0.16789168,118010.0,118000.0,1.02598972]
[1753265467275,0.15204,118010.0,118000.0,1.02598972]
[1753265468003,0.15204,118010.0,118000.0,1.31337863]
[1753265468658,0.55204,118010.0,118000.0,0.73860081]
[1753265468869,0.55204,118010.0,118000.0,1.31337863]
[1753265469953,0.55204,118010.0,118000.0,0.73860081]
[1753265470167,0.55204,118010.0,118000.0,1.02598972]
[1753265471588,0.15204,118010.0,118000.0,1.02598972]
[1753265473912,0.15204,118010.0,118000.0,1.31337863]
[1753265474521,0.15204,118010.0,118000.0,1.02598972]
[1753265476117,0.15204,118010.0,118000.0,0.59560081]
[1753265476325,0.15204,118010.0,118000.0,1.02342972]
[1753265476945,0.15204,118010.0,118000.0,0.88298972]
[1753265477093,0.15204,118010.0,118000.0,1.02338972]
[1753265478145,0.15204,118010.0,118000.0,1.31077863]
[1753265478376,0.15204,118010.0,118000.0,1.02338972]
[1753265480840,0.15204,118010.0,118000.0,0.88298972]
[1753265481032,0.15204,118010.0,118000.0,1.02310972]
[1753265482203,0.15204,118010.0,118000.0,0.88298972]
[1753265482430,0.15712,118010.0,118000.0,1.01774972]
[1753265483571,0.16559328,118010.0,118000.0,1.01774972]
[1753265483790,0.16559328,118010.0,118000.0,1.00080151]
[1753265484006,0.17406663,118010.0,118000.0,0.70481839]
[1753265484234,0.16559328,118010.0,118000.0,1.00915551]
[1753265484466,0.16559335,118010.0,118000.0,1.00915551]
[1753265485206,0.16559335,118010.0,118000.0,0.9311073]
[1753265485419,0.16559335,118010.0,118000.0,0.94805558]
[1753265485524,0.16559335,118010.0,118000.0,0.97835558]
[1753265485982,0.16559328,118010.0,118000.0,0.97835558]
[1753265486399,0.15712,118010.0,118000.0,0.97835558]
[1753265486600,0.16559328,118010.0,118000.0,0.69096667]
[1753265486808,0.16559328,118010.0,118000.0,0.97835558]
[1753265487126,0.17406663,118010.0,118000.0,0.97835558]
[1753265487546,0.16559328,118010.0,118000.0,0.97835558]
[1753265487760,0.1740667,118010.0,118000.0,0.98682972]
[1753265487963,0.16559335,118010.0,118000.0,1.02132972]
[1753265488169,0.16559335,118010.0,118000.0,0.9959073]
[1753265488396,0.16559335,118010.0,118000.0,0.70851868]
[1753265488618,0.17406677,118010.0,118000.0,0.70851875]
[1753265488825,0.18254034,118010.0,118000.0,1.00438202]
[1753265489281,0.18254026,118010.0,118000.0,1.02133051]
[1753265489500,0.17406677,118010.0,118000.0,1.02133008]
[1753265489708,0.17406677,118010.0,118000.0,1.01285594]
[1753265489921,0.17406677,118010.0,118000.0,0.99590745]
[1753265490169,0.16254335,118010.0,118000.0,1.00438173]
[1753265490382,0.17949041,118010.0,118000.0,0.70851854]
[1753265490598,0.17949041,118010.0,118000.0,0.99590745]
[1753265490806,0.17949034,118010.0,118000.0,1.0128558]
[1753265491016,0.17101677,118010.0,118000.0,0.72546689]
[1753265491253,0.17101677,118010.0,118000.0,1.0128558]
[1753265491656,0.17101677,118010.0,118000.0,1.02132987]
[1753265491874,0.17949034,118010.0,118000.0,1.00438166]
[1753265492294,0.17949034,118010.0,118000.0,0.98743309]
[1753265492522,0.16254328,118010.0,118000.0,1.00438144]
[1753265492724,0.16254328,118010.0,118000.0,1.00744144]
[1753265493387,0.1710167,118010.0,118000.0,1.00744144]
[1753265493899,0.16254328,118010.0,118000.0,1.00744151]
[1753265494311,0.1710167,118010.0,118000.0,0.99049309]
[1753265494520,0.27542135,118010.0,118000.0,0.38025823]
[1753265494731,0.27542192,118010.0,118000.0,0.45627823]
[1753265494943,0.28393193,118010.0,118000.0,0.62576975]
[1753265495156,0.28393186,118010.0,118000.0,0.68269282]
[1753265495358,0.29240535,118010.0,118000.0,0.9700818]
[1753265495768,0.30087899,118010.0,118000.0,0.9700818]
[1753265495981,0.30087899,118010.0,118000.0,0.96160759]
[1753265496195,0.30935277,118010.0,118000.0,0.96152766]
[1753265496407,0.29240535,118010.0,118000.0,0.9784763]
[1753265496665,0.30087906,118010.0,118000.0,0.69108739]
[1753265496865,0.30087906,118010.0,118000.0,0.67413875]
[1753265497074,0.47883,118010.0,118000.0,0.65718975]
[1753265497284,0.46924805,118010.0,118000.0,0.45619823]
[1753265497494,0.2997706,118010.0,118000.0,0.63416418]
[1753265497751,0.2839325,118010.0,118000.0,0.66516418]
[1753265498108,0.29240628,118010.0,118000.0,0.66516425]
[1753265498287,0.46188344,118010.0,118000.0,0.51779823]
[1753265498489,0.30824438,118010.0,118000.0,0.5262728]
[1753265498692,0.30088013,118010.0,118000.0,0.70423882]
[1753265498899,0.30088013,118010.0,118000.0,0.69576425]
[1753265499121,0.46188344,118010.0,118000.0,0.69576425]
[1753265499287,0.46188344,118010.0,118000.0,0.48719823]
[1753265499678,0.46188344,118010.0,118000.0,0.4956728]
[1753265499891,0.46188344,118010.0,118000.0,0.67363882]
[1753265500124,0.47772154,118010.0,118000.0,0.67363882]
[1753265500558,0.47772154,118010.0,118000.0,0.68211325]
[1753265500799,0.4298434,118010.0,118000.0,0.7360216]
[1753265501015,0.327498,118010.0,118000.0,1.02341051]
[1753265501228,0.30204,118010.0,118000.0,1.02341051]
[1753265501456,0.30204,118010.0,118000.0,0.7360216]
[1753265501673,0.63084,118010.0,118000.0,1.02341051]
[1753265501906,0.6463781,118010.0,118000.0,1.02341051]
[1753265502370,0.6463781,118010.0,118000.0,0.7360216]
[1753265502606,0.65485131,118010.0,118000.0,1.02341051]
[1753265502831,0.67391837,118010.0,118000.0,0.87323644]
[1753265503050,0.66842473,118010.0,118000.0,0.73284167]
[1753265503257,0.67391822,118010.0,118000.0,0.73284117]
[1753265503470,0.67391822,118010.0,118000.0,0.73590117]
[1753265503926,0.65697138,118010.0,118000.0,0.73590124]
[1753265504139,0.65697138,118010.0,118000.0,1.02329015]
[1753265504345,0.6484981,118010.0,118000.0,1.02329015]
[1753265504558,0.6463781,118010.0,118000.0,1.02329015]
[1753265505225,0.65485131,118010.0,118000.0,1.02329015]
[1753265505450,0.6463781,118010.0,118000.0,1.02329015]
[1753265508733,0.6463781,118010.0,118000.0,1.31067906]
[1753265508943,0.63054,118010.0,118000.0,1.31067906]
[1753265509154,0.63054,118010.0,118000.0,1.02329015]
[1753265509377,0.63054,118010.0,118000.0,1.31067906]
[1753265511638,0.62954,118010.0,118000.0,0.73090124]
[1753265511848,0.62954,118010.0,118000.0,1.30567906]
[1753265512060,0.63054,118010.0,118000.0,1.31067906]
[1753265512301,0.63054,118010.0,118000.0,1.01729015]
[1753265512518,0.62984,118010.0,118000.0,1.01729015]
[1753265512734,0.62984,118010.0,118000.0,1.02029015]
[1753265512937,0.30104,118010.0,118000.0,1.02029015]
[1753265513150,0.30104,118010.0,118000.0,1.01973015]
[1753265514292,0.30104,118010.0,118000.0,1.01945015]
[1753265515185,0.30104,118010.0,118000.0,1.02798374]
[1753265515857,0.151,118010.0,118000.0,1.02798374]
[1753265521289,0.151,118010.0,118000.0,1.23146374]
[1753265521923,0.151,118010.0,118000.0,1.51885265]
[1753265522143,0.001,118010.0,118000.0,1.91967897]
[1753265523741,0.001,118010.0,118000.0,1.91891897]
[1753265524232,0.001,118010.0,118000.0,1.90142995]
[1753265524444,0.001,118010.0,118000.0,1.10529483]
[1753265524661,0.15603,118010.0,118000.0,0.79270124]
[1753265524835,0.15302,118010.0,118000.0,1.21896015]
[1753265525052,0.15302,118010.0,118000.0,1.22202015]
[1753265525909,0.15302,118010.0,118000.0,1.01854015]
[1753265526120,0.15302,118010.0,118000.0,0.73115124]
[1753265526324,0.15302,118010.0,118000.0,1.01854015]
[1753265526546,0.15302,118010.0,118000.0,1.01548015]
[1753265527151,0.15302,118010.0,118000.0,0.72809124]
[1753265527366,0.15302,118010.0,118000.0,1.01548015]
[1753265528618,0.15302,118010.0,118000.0,0.72809124]
[1753265528792,0.15302,118010.0,118000.0,1.01548015]
[1753265529201,0.15302,118010.0,118000.0,1.01524015]
[1753265529426,0.15302,118010.0,118000.0,1.31414015]
[1753265529646,0.15302,118010.0,118000.0,1.17754015]
[1753265529798,0.15302,118010.0,118000.0,1.31414015]
[1753265530813,0.15302,118010.0,118000.0,1.17754015]
[1753265531014,0.15302,118010.0,118000.0,1.31402015]
[1753265531215,0.16450321,118010.0,118000.0,1.31199015]
[1753265531428,0.17297663,118010.0,118000.0,1.11271015]
[1753265531612,0.16450321,118010.0,118000.0,1.24915015]
[1753265531814,0.17297656,118010.0,118000.0,1.10423594]
[1753265532017,0.1983974,118010.0,118000.0,0.9532471]
[1753265532224,0.47387901,118010.0,118000.0,0.91930975]
[1753265532431,0.33440185,118010.0,118000.0,0.93625853]
[1753265532639,0.35985871,118010.0,118000.0,0.95320681]
[1753265532846,0.35985871,118010.0,118000.0,0.95320688]
[1753265533051,0.36833256,118010.0,118000.0,0.94473274]
[1753265533266,0.52933623,118010.0,118000.0,0.79989853]
[1753265533485,0.52933623,118010.0,118000.0,0.93617853]
[1753265533939,0.52833623,118010.0,118000.0,0.93117853]
[1753265534170,0.51986266,118010.0,118000.0,0.93117861]
[1753265534396,0.52086266,118010.0,118000.0,0.94465289]
[1753265534630,0.52086266,118010.0,118000.0,0.9531271]
[1753265534877,0.51986266,118010.0,118000.0,0.9481271]
[1753265535321,0.52086266,118010.0,118000.0,0.65870124]
[1753265535766,0.52086266,118010.0,118000.0,0.6502271]
[1753265536154,0.53669467,118010.0,118000.0,0.64175289]
[1753265536357,0.52086266,118010.0,118000.0,0.63327861]
[1753265536788,0.52186266,118010.0,118000.0,0.64575289]
[1753265536996,0.52086266,118010.0,118000.0,0.64175289]
[1753265537209,0.5366938,118010.0,118000.0,0.64175289]
[1753265537416,0.52086266,118010.0,118000.0,0.64475289]
[1753265537621,0.52086266,118010.0,118000.0,0.6532271]
[1753265537831,0.52086266,118010.0,118000.0,0.66170124]
[1753265538041,0.49086266,118010.0,118000.0,0.66170124]
[1753265538253,0.46086266,118010.0,118000.0,0.66170124]
[1753265538460,0.46086266,118010.0,118000.0,0.6532271]
[1753265538868,0.43540566,118010.0,118000.0,0.6532271]
[1753265539078,0.77540566,118010.0,118000.0,0.5169471]
[1753265539285,0.80630566,118010.0,118000.0,0.63591861]
[1753265539499,0.80630566,118010.0,118000.0,0.64439289]
[1753265539704,0.80630566,118010.0,118000.0,0.6528671]
[1753265539914,0.77540566,118010.0,118000.0,0.6528671]
[1753265540647,0.77540566,118010.0,118000.0,0.5169471]
[1753265540875,0.77540566,118010.0,118000.0,0.6528271]
[1753265541665,0.79123158,118010.0,118000.0,0.64435289]
[1753265542161,0.82143158,118010.0,118000.0,0.62740425]
[1753265542415,0.79123158,118010.0,118000.0,0.65282732]
[1753265542668,0.78275794,118010.0,118000.0,0.65282732]
[1753265542873,0.76693202,118010.0,118000.0,0.66130153]
[1753265543077,0.76693202,118010.0,118000.0,0.66130117]
[1753265543254,0.76693202,118010.0,118000.0,0.65282703]
[1753265543906,0.76693202,118010.0,118000.0,0.66130117]
[1753265544119,0.76693202,118010.0,118000.0,0.64435282]
[1753265544545,0.76693202,118010.0,118000.0,0.65282703]
[1753265544761,0.76693202,118010.0,118000.0,0.66130117]
[1753265545776,0.76693202,118010.0,118000.0,0.65282703]
[1753265546545,0.76693202,118010.0,118000.0,0.64435282]
[1753265546750,0.76693202,118010.0,118000.0,0.49152418]
[1753265546949,0.76693202,118010.0,118000.0,0.63547846]
[1753265547148,0.76693202,118010.0,118000.0,0.64395267]
[1753265548102,0.76693202,118010.0,118000.0,0.49999846]
[1753265548311,0.76693202,118010.0,118000.0,0.49152418]
[1753265548522,0.76693202,118010.0,118000.0,0.64387267]
[1753265548730,0.76693202,118010.0,118000.0,0.62692418]
[1753265549151,0.76693202,118010.0,118000.0,0.63539846]
[1753265549392,0.76693202,118010.0,118000.0,0.95877126]
[1753265549605,0.76693202,118010.0,118000.0,0.95025705]
[1753265549818,0.76693202,118010.0,118000.0,0.95873148]
[1753265550035,1.24765394,118010.0,118000.0,0.31355823]
[1753265550255,1.31115394,118010.0,118000.0,0.44887823]
[1753265550477,1.33661394,118010.0,118000.0,0.44887823]
[1753265550731,1.01324114,118010.0,118000.0,0.44887823]
[1753265551156,1.33661394,118010.0,118000.0,0.31355823]
[1753265551360,1.01324114,118010.0,118000.0,0.44887823]
[1753265552456,1.01324114,118010.0,118000.0,0.31355823]
[1753265552875,1.01324114,118010.0,118000.0,0.44871823]
[1753265553090,0.94974114,118010.0,118000.0,0.44871823]
[1753265553456,1.01154114,118010.0,118000.0,0.44871823]
[1753265553981,1.01153765,118010.0,118000.0,0.44871823]
[1753265554181,0.94973765,118010.0,118000.0,0.31355823]
[1753265554388,1.01153765,118010.0,118000.0,0.44875823]
[1753265555283,1.01153765,118010.0,118000.0,0.44855823]
[1753265555482,1.01153765,118010.0,118000.0,0.31355823]
[1753265555677,1.01188807,118010.0,118000.0,0.44855823]
[1753265559236,0.99606873,118010.0,118000.0,0.44855823]
[1753265559439,1.01189317,118010.0,118000.0,0.44855823]
[1753265560258,0.98049317,118010.0,118000.0,0.44855823]
[1753265560703,0.95009317,118010.0,118000.0,0.44855823]
[1753265562605,0.95009317,118010.0,118000.0,0.62652432]
[1753265562848,0.95009317,118010.0,118000.0,0.61804975]
[1753265563024,0.95009317,118010.0,118000.0,0.62652425]
[1753265563237,0.95009317,118010.0,118000.0,0.69072425]
[1753265563438,0.94161932,118010.0,118000.0,0.51275823]
[1753265564794,0.94161932,118010.0,118000.0,0.69919868]
[1753265565215,0.94161932,118010.0,118000.0,0.69036432]
[1753265565728,0.94161932,118010.0,118000.0,0.69883882]
[1753265565978,0.94161932,118010.0,118000.0,0.70731325]
[1753265566189,0.94161932,118010.0,118000.0,0.71578753]
[1753265566722,0.94161932,118010.0,118000.0,0.70731325]
[1753265566925,0.94161932,118010.0,118000.0,0.69883882]
[1753265567860,0.94161932,118010.0,118000.0,0.70731325]
[1753265568878,0.94161932,118010.0,118000.0,0.51239823]
[1753265569674,0.94161932,118010.0,118000.0,0.68188975]
[1753265570338,0.94161932,118010.0,118000.0,0.51239823]
[1753265570782,0.94163587,118010.0,118000.0,0.51239823]
[1753265571229,1.26505906,118010.0,118000.0,0.51239823]
[1753265571443,1.26505906,118010.0,118000.0,0.68188975]
[1753265572069,0.94163587,118010.0,118000.0,0.68188975]
[1753265572296,1.26505906,118010.0,118000.0,0.69036432]
[1753265572497,0.94163587,118010.0,118000.0,0.51239823]
[1753265572708,1.26505906,118010.0,118000.0,0.5208728]
[1753265572929,1.26505906,118010.0,118000.0,0.69883875]
[1753265573140,0.95557307,118010.0,118000.0,0.70930296]
[1753265573366,0.9725207,118010.0,118000.0,0.7177771]
[1753265573830,0.9757507,118010.0,118000.0,0.69235432]
[1753265574041,0.9588035,118010.0,118000.0,0.69235432]
[1753265574284,0.9588035,118010.0,118000.0,0.69036432]
[1753265574501,0.95032972,118010.0,118000.0,0.51239823]
[1753265574712,0.95032972,118010.0,118000.0,0.68188975]
[1753265574934,0.95032972,118010.0,118000.0,0.69036432]
[1753265575354,0.95032972,118010.0,118000.0,0.51239823]
[1753265575741,1.27375291,118010.0,118000.0,0.51239823]
[1753265576179,0.95032972,118010.0,118000.0,0.51239823]
[1753265576384,1.27375291,118010.0,118000.0,0.51239823]
[1753265576800,0.95032972,118010.0,118000.0,0.51239823]
[1753265577863,1.27375291,118010.0,118000.0,0.51239823]
[1753265578823,0.95032972,118010.0,118000.0,0.51239823]
[1753265579038,1.27375291,118010.0,118000.0,0.5208728]
[1753265579233,1.27375291,118010.0,118000.0,0.51239823]
[1753265579470,1.27375291,118010.0,118000.0,0.69036418]
[1753265580131,0.95032972,118010.0,118000.0,0.69036418]
[1753265581369,0.95032972,118010.0,118000.0,0.68188975]
[1753265581639,0.95032972,118010.0,118000.0,0.69036432]
[1753265582264,0.95032972,118010.0,118000.0,0.69883882]
[1753265582590,0.94185587,118010.0,118000.0,0.69036432]
[1753265582809,0.94185587,118010.0,118000.0,0.51239823]
[1753265583239,0.94185587,118010.0,118000.0,0.68188975]
[1753265583448,0.94185587,118010.0,118000.0,0.69036432]
[1753265584171,0.94185587,118010.0,118000.0,0.51239823]
[1753265584511,0.92601488,118010.0,118000.0,0.51239823]
[1753265585422,0.94187857,118010.0,118000.0,0.51239823]
[1753265585622,0.94187857,118010.0,118000.0,0.51235823]
[1753265585821,1.24943807,118010.0,118000.0,0.48095823]
[1753265586027,1.26530159,118010.0,118000.0,0.48095823]
[1753265586256,1.26530159,118010.0,118000.0,0.51365823]
[1753265586467,1.26530155,118010.0,118000.0,0.51365823]
[1753265587913,1.26530155,118010.0,118000.0,0.48095823]
[1753265588153,1.26530155,118010.0,118000.0,0.44815823]
[1753265588319,1.26530155,118010.0,118000.0,0.47995823]
[1753265588523,1.26530155,118010.0,118000.0,0.51085823]
[1753265588740,0.94187836,118010.0,118000.0,0.51085823]
[1753265588945,1.26530155,118010.0,118000.0,0.51081823]
[1753265589134,1.26534155,118010.0,118000.0,0.51081823]
[1753265591550,0.94191836,118010.0,118000.0,0.51081823]
[1753265591765,1.26534155,118010.0,118000.0,0.51081823]
[1753265591967,1.26534218,118010.0,118000.0,0.51081823]
[1753265592407,0.94191899,118010.0,118000.0,0.37625823]
[1753265592673,0.94191899,118010.0,118000.0,0.51081823]
[1753265592878,1.26534218,118010.0,118000.0,0.51081823]
[1753265593542,0.94091899,118010.0,118000.0,0.37225823]
[1753265593778,0.94091899,118010.0,118000.0,0.50381823]
[1753265594001,1.26434218,118010.0,118000.0,0.37425823]
[1753265594237,6.31434218,118010.0,118000.0,0.31155823]
[1753265594460,6.05471899,118010.0,118000.0,0.44611823]
[1753265594674,6.37814218,118010.0,118000.0,0.44611823]
[1753265595096,6.3860737,118010.0,118000.0,0.44611823]
[1753265597059,6.06265051,118010.0,118000.0,0.44611823]
[1753265597278,6.3860737,118010.0,118000.0,0.44611823]
[1753265597490,6.06265051,118010.0,118000.0,0.31155823]
[1753265597697,6.3860737,118010.0,118000.0,0.31155823]
[1753265598116,6.06264749,118010.0,118000.0,0.31155823]
[1753265598340,6.38607068,118010.0,118000.0,0.31155823]
[1753265598556,6.06264749,118010.0,118000.0,0.31155823]
[1753265598763,5.99884749,118010.0,118000.0,0.31155823]
[1753265599003,6.32227068,118010.0,118000.0,0.31155823]
[1753265599882,6.3397197,118010.0,118000.0,0.31155823]
[1753265600093,6.42929434,118010.0,118000.0,0.44831823]
[1753265600989,6.42929434,118010.0,118000.0,0.44331823]
[1753265601219,6.42929434,118010.0,118000.0,0.30655823]
[1753265601462,6.10587115,118010.0,118000.0,0.44327823]
[1753265601672,6.42929434,118010.0,118000.0,0.44327823]
[1753265601899,6.10587115,118010.0,118000.0,0.44527823]
[1753265602113,6.42929434,118010.0,118000.0,0.44527823]
[1753265602539,6.10587115,118010.0,118000.0,0.44527823]
[1753265602736,6.42929434,118010.0,118000.0,0.44527823]
[1753265603144,6.36549434,118010.0,118000.0,0.44527823]
[1753265603578,6.04207115,118010.0,118000.0,0.44527823]
[1753265603826,6.36549434,118010.0,118000.0,0.44527823]
[1753265604754,6.04207115,118010.0,118000.0,0.44527823]
[1753265604949,6.36549434,118010.0,118000.0,0.44527823]
[1753265605593,6.37426644,118010.0,118000.0,0.44527823]
[1753265606682,6.37426644,118010.0,118000.0,0.47627823]
[1753265607098,6.37426644,118010.0,118000.0,0.44527823]
[1753265607554,6.03339423,118010.0,118000.0,0.50777823]
[1753265607753,6.03016423,118010.0,118000.0,0.37312823]
[1753265607966,6.35358742,118010.0,118000.0,0.50968823]
[1753265608121,6.35659742,118010.0,118000.0,0.50968823]
[1753265608333,6.35659742,118010.0,118000.0,0.50761823]
[1753265608882,6.03317423,118010.0,118000.0,0.50761823]
[1753265609119,6.35659742,118010.0,118000.0,0.50761823]
[1753265609747,6.03317423,118010.0,118000.0,0.50761823]
[1753265609948,6.35659742,118010.0,118000.0,0.50761823]
[1753265610157,6.34866892,118010.0,118000.0,0.50761823]
[1753265610361,6.02524573,118010.0,118000.0,0.50761823]
[1753265610774,6.34866892,118010.0,118000.0,0.50761823]
[1753265611250,6.02524573,118010.0,118000.0,0.50761823]
[1753265611478,6.34866892,118010.0,118000.0,0.50761823]
[1753265611710,6.32289428,118010.0,118000.0,0.50761823]
[1753265612797,6.3228853,118010.0,118000.0,0.50761823]
[1753265614930,6.33081495,118010.0,118000.0,0.50761823]
[1753265615154,6.00739176,118010.0,118000.0,0.50761823]
[1753265615357,6.33081495,118010.0,118000.0,0.50761823]
[1753265615944,6.33081495,118010.0,118000.0,0.47611823]
[1753265616483,6.33081495,118010.0,118000.0,0.50631823]
[1753265617309,6.00739176,118010.0,118000.0,0.50631823]
[1753265617494,6.33081495,118010.0,118000.0,0.50631823]
[1753265617700,6.00739176,118010.0,118000.0,0.50631823]
[1753265617927,6.33081495,118010.0,118000.0,0.50631823]
[1753265618149,1.28081495,118010.0,118000.0,0.50631823]
[1753265619338,0.95739176,118010.0,118000.0,0.50631823]
[1753265619566,6.32204285,118010.0,118000.0,0.50631823]
[1753265621106,5.99861966,118010.0,118000.0,0.50631823]
[1753265621525,5.9986358,118010.0,118000.0,0.50631823]
[1753265621734,6.32205899,118010.0,118000.0,0.50631823]
[1753265621922,6.32205899,118010.0,118000.0,0.50591823]
[1753265621923,5.9986358,118010.0,118000.0,0.50591823]
[1753265622132,6.32205899,118010.0,118000.0,0.50591823]
[1753265622924,6.32205899,118010.0,118000.0,0.36975823]
[1753265623112,6.32205899,118010.0,118000.0,0.50595823]
[1753265623741,6.33065875,118010.0,118000.0,0.50595823]
[1753265624941,6.3306587,118010.0,118000.0,0.50595823]
[1753265625180,6.3306587,118010.0,118000.0,0.36975823]
[1753265625422,6.3306587,118010.0,118000.0,0.50583823]
[1753265625593,6.00723551,118010.0,118000.0,0.50583823]
[1753265625769,6.3306587,118010.0,118000.0,0.50583823]
[1753265627195,6.33065814,118010.0,118000.0,0.50583823]
[1753265628659,6.33065814,118010.0,118000.0,0.47563823]
[1753265628842,6.33065814,118010.0,118000.0,0.44463823]
[1753265630083,6.00723495,118010.0,118000.0,0.44463823]
[1753265630355,6.33065814,118010.0,118000.0,0.44463823]
[1753265630609,1.28065814,118010.0,118000.0,0.44463823]
[1753265630852,6.36791349,118010.0,118000.0,0.44439823]
[1753265631073,6.39880847,118010.0,118000.0,0.30855823]
[1753265631298,6.39880847,118010.0,118000.0,0.44435823]
[1753265632264,6.39980847,118010.0,118000.0,0.44435823]
[1753265633635,6.41725749,118010.0,118000.0,0.30855823]
[1753265633890,6.41725749,118010.0,118000.0,0.44435823]
[1753265634085,6.55301749,118010.0,118000.0,0.30855823]
[1753265634686,6.55301749,118010.0,118000.0,0.30655823]
[1753265635511,6.55301749,118010.0,118000.0,0.30755823]
[1753265637549,6.40301749,118010.0,118000.0,0.30755823]
[1753265638094,6.34081749,118010.0,118000.0,0.30755823]
[1753265638723,6.0173943,118010.0,118000.0,0.30755823]
[1753265638939,6.20505749,118010.0,118000.0,0.30755823]
[1753265639169,6.34081749,118010.0,118000.0,0.30755823]
[1753265640301,6.40421749,118010.0,118000.0,0.30755823]
[1753265642490,6.34081749,118010.0,118000.0,0.30755823]
[1753265644838,6.34081749,118010.0,118000.0,0.69946142]
[1753265644839,1.09527131,118010.0,118000.0,0.69946142]
[1753265645294,1.09527131,118010.0,118000.0,0.87742744]
[1753265645623,1.10374495,118010.0,118000.0,0.89437623]
[1753265645838,0.95121499,118010.0,118000.0,0.90285037]
[1753265646062,0.95121499,118010.0,118000.0,0.91132444]
[1753265646261,0.95121499,118010.0,118000.0,0.89437623]
[1753265646262,1.129166,118010.0,118000.0,0.89437623]
[1753265646470,1.10482366,118010.0,118000.0,0.88590187]
[1753265646863,1.12067566,118010.0,118000.0,0.89437608]
[1753265647067,1.10067566,118010.0,118000.0,0.88590187]
[1753265647267,1.10067566,118010.0,118000.0,0.89437623]
[1753265647475,1.10067566,118010.0,118000.0,0.57095304]
[1753265647683,1.10067547,118010.0,118000.0,0.90285051]
[1753265647881,1.10067547,118010.0,118000.0,0.91132472]
[1753265648081,1.10067547,118010.0,118000.0,0.90285051]
[1753265648289,1.10067547,118010.0,118000.0,0.89437623]
[1753265648495,1.10067547,118010.0,118000.0,0.90285051]
[1753265648957,1.10067547,118010.0,118000.0,0.57942732]
[1753265649175,1.08372805,118010.0,118000.0,0.69946142]
[1753265649396,1.0752542,118010.0,118000.0,0.37603823]
[1753265651026,1.0752542,118010.0,118000.0,0.69946142]
[1753265652261,6.1252542,118010.0,118000.0,0.69946142]
[1753265652452,6.12490378,118010.0,118000.0,0.699111]